fUSD/lending_fUSD_20250811
["ID","MTS","AMOUNT","RATE_DAILY","PERIOD"]
[378506539,1754889729598,-400.0,0.00030136,120]
[378506540,1754889729647,-966.01,0.00030136,120]
[378506541,1754889729695,-1242.53,0.00030136,120]
[378506542,1754889729745,-1313.05,0.00030136,120]
[378506543,1754889729795,-684.93,0.00030136,120]
[378506544,1754889729845,-427.38,0.00030136,120]
[378506545,1754889729895,-400.0,0.00030136,120]
[378506546,1754889729942,-400.0,0.00030136,120]
[378506547,1754889729991,-400.0,0.00030136,120]
[378506548,1754889730041,-1429.61,0.00030136,120]
[378506550,1754889730087,-400.0,0.00030136,120]
[378506552,1754889730364,-500.86,0.00030136,120]
[378506553,1754889730414,-1061.03,0.00030136,120]
[378506554,1754889730463,-400.0,0.00030136,120]
[378506555,1754889730517,-2783.51,0.00030136,120]
[378506556,1754889730574,-400.0,0.00030136,120]
[378506558,1754889730619,-400.0,0.00030136,120]
[378506559,1754889730667,-400.0,0.00030136,120]
[378506560,1754889730717,-400.0,0.00030136,120]
[378506561,1754889730766,-745.26,0.00030136,120]
[378506562,1754889730817,-400.0,0.00030136,120]
[378506563,1754889730868,-1161.35,0.00030136,120]
[378506564,1754889730919,-400.0,0.00030136,120]
[378506565,1754889730969,-400.0,0.00030136,120]
[378506566,1754889731023,-400.0,0.00030136,120]
[378506568,1754889731073,-400.0,0.00030136,120]
[378506569,1754889731121,-1193.49,0.00030136,120]
[378506570,1754889731175,-400.0,0.00030136,120]
[378506571,1754889731232,-400.0,0.00030136,120]
[378506572,1754889731286,-544.59,0.00030136,120]
[378506574,1754889731337,-400.0,0.00030136,120]
[378506575,1754889731390,-673.98,0.00030136,120]
[378506576,1754889731442,-1359.13,0.00030136,120]
[378506577,1754889731491,-1890.03,0.00030136,120]
[378506578,1754889731542,-400.0,0.00030136,120]
[378506580,1754889731591,-400.0,0.00030136,120]
[378506581,1754889731640,-946.71,0.00030136,120]
[378506582,1754889731687,-1661.11,0.00030136,120]
[378506583,1754889731738,-400.0,0.00030136,120]
[378506584,1754889731788,-400.0,0.00030136,120]
[378506585,1754889731842,-656.3,0.00030136,120]
[378506587,1754889731896,-400.0,0.00030136,120]
[378506588,1754889731949,-1396.06,0.00030136,120]
[378506589,1754889732003,-400.0,0.00030136,120]
[378506590,1754889732062,-985.29,0.00030136,120]
[378506591,1754889732115,-985.29,0.00030136,120]
[378506593,1754889732174,-985.29,0.00030136,120]
[378506594,1754889732230,-985.29,0.00030136,120]
[378506595,1754889732283,-985.29,0.00030136,120]
[378506596,1754889732334,-400.0,0.00030136,120]
[378506597,1754889732394,-985.29,0.00030136,120]
[378506599,1754889732445,-586.62,0.00030136,120]
[378506600,1754889732498,-985.29,0.00030136,120]
[378506601,1754889732551,-400.0,0.00030136,120]
[378506602,1754889732606,-403.19,0.00030136,120]
[378506603,1754889732657,-400.0,0.00030136,120]
[378506605,1754889732707,-606.6,0.00030136,120]
[378506606,1754889732756,-400.0,0.00030136,120]
[378506607,1754889732807,-400.0,0.00030136,120]
[378506608,1754889732860,-985.29,0.00030136,120]
[378506610,1754889732921,-985.29,0.00030136,120]
[378506611,1754889732974,-985.29,0.00030136,120]
[378506612,1754889733025,-985.29,0.00030136,120]
[378506613,1754889733076,-1182.73,0.00030136,120]
[378506614,1754889733127,-985.29,0.00030136,120]
[378506616,1754889733177,-400.0,0.00030136,120]
[378506617,1754889733232,-985.29,0.00030136,120]
[378506618,1754889733290,-985.29,0.00030136,120]
[378506620,1754889733343,-985.29,0.00030136,120]
[378506621,1754889733397,-400.0,0.00030136,120]
[378506623,1754889733448,-985.29,0.00030136,120]
[378506624,1754889733499,-985.29,0.00030136,120]
[378506625,1754889733550,-400.0,0.00030136,120]
[378506626,1754889733604,-985.29,0.00030136,120]
[378506627,1754889733660,-985.29,0.00030136,120]
[378506629,1754889733716,-985.29,0.00030136,120]
[378506630,1754889733773,-985.29,0.00030136,120]
[378506631,1754889733837,-985.29,0.00030136,120]
[378506632,1754889733896,-985.29,0.00030136,120]
[378506634,1754889733947,-400.0,0.00030136,120]
[378506635,1754889734001,-985.39994935,0.00030136,120]
[378506636,1754889734054,-400.0,0.00030136,120]
[378506637,1754889734109,-400.0,0.00030136,120]
[378506638,1754889734161,-982.29,0.00030136,120]
[378506639,1754889734212,-636.87,0.00030136,120]
[378506641,1754889734262,-400.0,0.00030136,120]
[378506642,1754889734313,-400.0,0.00030136,120]
[378506643,1754889734364,-965.88,0.00030136,120]
[378506644,1754889734418,-400.0,0.00030136,120]
[378506645,1754889734470,-400.0,0.00030136,120]
[378506647,1754889734521,-400.0,0.00030136,120]
[378506648,1754889734570,-400.0,0.00030136,120]
[378506649,1754889734619,-822.02,0.00030136,120]
[378506650,1754889734666,-1260.95,0.00030136,120]
[378506651,1754889734713,-508.64,0.00030136,120]
[378506653,1754889734759,-400.0,0.00030136,120]
[378506654,1754889734816,-1303.08,0.00030136,120]
[378506655,1754889734870,-400.0,0.00030136,120]
[378506656,1754889734928,-406.88,0.00030136,120]
[378506657,1754889734986,-1653.44,0.00030136,120]
[378506658,1754889735041,-400.0,0.00030136,120]
[378506659,1754889735096,-1023.64,0.00030136,120]
[378506660,1754889735153,-1109.43,0.00030136,120]
[378506662,1754889735202,-607.37,0.00030136,120]
[378506663,1754889735255,-400.0,0.00030136,120]
[378506664,1754889735677,-1377.31,0.00030136,120]
[378506665,1754889735728,-1961.27,0.00030136,120]
[378506666,1754889735780,-400.0,0.00030136,120]
[378506668,1754889735831,-400.0,0.00030136,120]
[378506669,1754889735883,-400.0,0.00030136,120]
[378506670,1754889735936,-400.0,0.00030136,120]
[378506671,1754889735989,-400.0,0.00030136,120]
[378506672,1754889736041,-581.45,0.00030136,120]
[378506673,1754889736092,-400.0,0.00030136,120]
[378506674,1754889736144,-1173.52,0.00030136,120]
[378506676,1754889736192,-2758.0,0.00030136,120]
[378506677,1754889736241,-400.0,0.00030136,120]
[378506678,1754889736294,-400.0,0.00030136,120]
[378506679,1754889736349,-400.0,0.00030136,120]
[378506681,1754889736398,-400.0,0.00030136,120]
[378506683,1754889736447,-2705.95,0.00030136,120]
[378506684,1754889736497,-992.02,0.00030136,120]
[378506685,1754889736552,-2191.68,0.00030136,120]
[378506686,1754889736608,-400.0,0.00030136,120]
[378506688,1754889736656,-400.0,0.00030136,120]
[378506689,1754889736706,-1963.39,0.00030136,120]
[378506691,1754889736756,-400.0,0.00030136,120]
[378506692,1754889736811,-1710.63,0.00030136,120]
[378506693,1754889736869,-400.0,0.00030136,120]
[378506695,1754889736927,-1052.78,0.00030136,120]
[378506697,1754889736977,-400.0,0.00030136,120]
[378506698,1754889737030,-400.0,0.00030136,120]
[378506699,1754889737083,-400.0,0.00030136,120]
[378506700,1754889737144,-400.0,0.00030136,120]
[378506702,1754889737200,-1270.14,0.00030136,120]
[378506703,1754889737252,-400.0,0.00030136,120]
[378506704,1754889737303,-1541.06,0.00030136,120]
[378506705,1754889737360,-594.55,0.00030136,120]
[378506706,1754889737409,-408.23833532,0.00030136,120]
[378506707,1754889737459,-1448.4,0.00030136,120]
[378506708,1754889737510,-400.0,0.00030136,120]
[378506709,1754889737568,-534.17595391,0.00030136,120]
[378506710,1754889737623,-400.0,0.00030136,120]
[378506711,1754889737674,-3553.34,0.00030136,120]
[378506712,1754889737730,-400.0,0.00030136,120]
[378506713,1754889737781,-479.47,0.00030136,120]
[378506714,1754889737832,-445.86,0.00030136,120]
[378506715,1754889737884,-1216.91,0.00030136,120]
[378506717,1754889737933,-684.601897,0.00030136,120]
[378506718,1754889737983,-400.0,0.00030136,120]
[378506719,1754889738035,-1216.91,0.00030136,120]
[378506720,1754889738085,-1216.91,0.00030136,120]
[378506721,1754889738135,-1216.91,0.00030136,120]
[378506722,1754889738185,-1216.91,0.00030136,120]
[378506723,1754889738238,-400.0,0.00030136,120]
[378506724,1754889738287,-1216.91,0.00030136,120]
[378506725,1754889738337,-1216.91,0.00030136,120]
[378506726,1754889738389,-400.0,0.00030136,120]
[378506727,1754889738441,-1216.91,0.00030136,120]
[378506728,1754889738493,-1216.91,0.00030136,120]
[378506729,1754889738544,-400.0,0.00030136,120]
[378506730,1754889738595,-400.0,0.00030136,120]
[378506731,1754889738647,-1216.91,0.00030136,120]
[378506732,1754889738697,-400.0,0.00030136,120]
[378506733,1754889738750,-902.56,0.00030136,120]
[378506734,1754889738805,-1216.91,0.00030136,120]
[378506735,1754889738861,-1216.91,0.00030136,120]
[378506736,1754889738914,-400.0,0.00030136,120]
[378506737,1754889738968,-1339.46,0.00030136,120]
[378506738,1754889739022,-400.0,0.00030136,120]
[378506739,1754889739080,-1216.91,0.00030136,120]
[378506740,1754889739135,-1216.91,0.00030136,120]
[378506741,1754889739189,-727.98,0.00030136,120]
[378506742,1754889739242,-1216.91,0.00030136,120]
[378506743,1754889739293,-400.0,0.00030136,120]
[378506744,1754889739344,-1996.92,0.00030136,120]
[378506745,1754889739395,-1216.91,0.00030136,120]
[378506746,1754889739447,-1216.91,0.00030136,120]
[378506747,1754889739501,-400.0,0.00030136,120]
[378506748,1754889739556,-1216.91,0.00030136,120]
[378506749,1754889739610,-1216.91,0.00030136,120]
[378506750,1754889739659,-1216.91,0.00030136,120]
[378506751,1754889739712,-1216.91,0.00030136,120]
[378506752,1754889739767,-1216.91,0.00030136,120]
[378506753,1754889739822,-1216.91,0.00030136,120]
[378506754,1754889739877,-1216.95602278,0.00030136,120]
[378506755,1754889739929,-400.0,0.00030136,120]
[378506756,1754889739980,-400.0,0.00030136,120]
[378506757,1754889740031,-2418.59,0.00030136,120]
[378506758,1754889740084,-476.81,0.00030136,120]
[378506759,1754889740135,-1061.3,0.00030136,120]
[378506760,1754889740185,-400.0,0.00030136,120]
[378506761,1754889740237,-400.0,0.00030136,120]
[378506762,1754889740289,-400.0,0.00030136,120]
[378506763,1754889740339,-400.0,0.00030136,120]
[378506764,1754889740390,-400.0,0.00030136,120]
[378506765,1754889740440,-1249.42,0.00030136,120]
[378506766,1754889740495,-755.53,0.00030136,120]
[378506767,1754889740547,-400.0,0.00030136,120]
[378506768,1754889740597,-400.0,0.00030136,120]
[378506770,1754889740879,-400.0,0.00030136,120]
[378506771,1754889740932,-1756.68,0.00030136,120]
[378506772,1754889740982,-400.0,0.00030136,120]
[378506773,1754889741036,-1444.4,0.00030136,120]
[378506775,1754889741085,-400.0,0.00030136,120]
[378506776,1754889741135,-401.55519443,0.00030136,120]
[378506777,1754889741186,-400.0,0.00030136,120]
[378506778,1754889741238,-942.15,0.00030136,120]
[378506779,1754889741288,-1437.73,0.00030136,120]
[378506781,1754889741335,-400.0,0.00030136,120]
[378506782,1754889741385,-400.0,0.00030136,120]
[378506783,1754889741434,-400.0,0.00030136,120]
[378506784,1754889741483,-883.82,0.00030136,120]
[378506785,1754889741534,-1057.03,0.00030136,120]
[378506786,1754889741585,-151.694166,0.00030136,120]
[378506787,1754889741632,-400.0,0.00030136,120]
[378506788,1754889741680,-1773.66,0.00030136,120]
[378506789,1754889741731,-510.91,0.00030136,120]
[378506790,1754889741784,-1293.61,0.00030136,120]
[378506791,1754889741835,-400.0,0.00030136,120]
[378506792,1754889741884,-300.0,0.00030136,120]
[378506793,1754889741935,-409.94,0.00030136,120]
[378506794,1754889741986,-1132.29,0.00030136,120]
[378506795,1754889742036,-400.0,0.00030136,120]
[378506796,1754889742088,-1885.7,0.00030136,120]
[378506797,1754889742139,-400.0,0.00030136,120]
[378506798,1754889742189,-400.0,0.00030136,120]
[378506799,1754889742240,-403.89,0.00030136,120]
[378506800,1754889742290,-719.41,0.00030136,120]
[378506801,1754889742339,-154.787602,0.00030136,120]
[378506802,1754889742386,-400.0,0.00030136,120]
[378506803,1754889742433,-400.0,0.00030136,120]
[378506804,1754889742483,-955.47,0.00030136,120]
[378506805,1754889742537,-1498.94,0.00030136,120]
[378506806,1754889742586,-480.67767075,0.00030136,120]
[378506807,1754889742635,-923.91,0.00030136,120]
[378506808,1754889742684,-1406.03,0.00030136,120]
[378506809,1754889742737,-923.91,0.00030136,120]
[378506810,1754889742787,-400.0,0.00030136,120]
[378506812,1754889742839,-2159.01,0.00030136,120]
[378506813,1754889742892,-449.087517,0.00030136,120]
[378506814,1754889742943,-766.200359,0.00030136,120]
[378506815,1754889742996,-400.0,0.00030136,120]
[378506816,1754889743046,-400.0,0.00030136,120]
[378506817,1754889743095,-742.58,0.00030136,120]
[378506818,1754889743148,-467.4297565,0.00030136,120]
[378506820,1754889743196,-400.0,0.00030136,120]
[378506821,1754889743246,-400.0,0.00030136,120]
[378506822,1754889743302,-1512.62,0.00030136,120]
[378506823,1754889743355,-686.12,0.00030136,120]
[378506825,1754889743407,-616.65,0.00030136,120]
[378506827,1754889743456,-245.72862016,0.00030136,120]
[378506828,1754889743511,-400.0,0.00030136,120]
[378506829,1754889743570,-563.11,0.00030136,120]
[378506830,1754889743623,-400.0,0.00030136,120]
[378506832,1754889743673,-1909.31,0.00030136,120]
[378506833,1754889743723,-400.0,0.00030136,120]
[378506834,1754889743774,-400.0,0.00030136,120]
[378506835,1754889743825,-400.0,0.00030136,120]
[378506836,1754889743878,-400.0,0.00030136,120]
[378506838,1754889743925,-500.0,0.00030136,120]
[378506839,1754889743975,-500.0,0.00030136,120]
[378506840,1754889744027,-1379.51,0.00030136,120]
[378506841,1754889744078,-1096.86,0.00030136,120]
[378506842,1754889744133,-400.0,0.00030136,120]
[378506844,1754889744181,-504.49676704,0.00030136,120]
[378506845,1754889744232,-1137.86,0.00030136,120]
[378506846,1754889744286,-1476.33,0.00030136,120]
[378506847,1754889744341,-451.12,0.00030136,120]
[378506848,1754889744394,-400.0,0.00030136,120]
[378506849,1754889744447,-400.0,0.00030136,120]
[378506850,1754889744500,-400.0,0.00030136,120]
[378506851,1754889744556,-400.0,0.00030136,120]
[378506852,1754889744613,-545.09314038,0.00030136,120]
[378506854,1754889744665,-1817.42,0.00030136,120]
[378506856,1754889744716,-3562.75,0.00030136,120]
[378506857,1754889744768,-911.0,0.00030136,120]
[378506858,1754889744819,-2133.76,0.00030136,120]
[378506859,1754889744873,-672.01,0.00030136,120]
[378506860,1754889744927,-400.0,0.00030136,120]
[378506862,1754889744978,-400.0,0.00030136,120]
[378506863,1754889745031,-600.84,0.00030136,120]
[378506864,1754889745082,-400.0,0.00030136,120]
[378506865,1754889745131,-2195.1,0.00030136,120]
[378506866,1754889745181,-400.0,0.00030136,120]
[378506868,1754889745229,-762.58,0.00030136,120]
[378506869,1754889745277,-706.83,0.00030136,120]
[378506870,1754889745330,-400.0,0.00030136,120]
[378506871,1754889745382,-405.36864291,0.00030136,120]
[378506872,1754889745434,-1050.03,0.00030136,120]
[378506873,1754889745484,-1057.32,0.00030136,120]
[378506874,1754889745540,-400.0,0.00030136,120]
[378506875,1754889745594,-1007.75,0.00030136,120]
[378506876,1754889745648,-400.0,0.00030136,120]
[378506877,1754889745704,-164.594304,0.00030136,120]
[378506878,1754889745983,-500.0,0.00030136,120]
[378506879,1754889746036,-472.75,0.00030136,120]
[378506880,1754889746088,-500.0,0.00030136,120]
[378506881,1754889746136,-404.38017541,0.00030136,120]
[378506882,1754889746188,-400.0,0.00030136,120]
[378506883,1754889746237,-500.0,0.00030136,120]
[378506884,1754889746286,-500.0,0.00030136,120]
[378506885,1754889746337,-763.48,0.00030136,120]
[378506886,1754889746391,-500.0,0.00030136,120]
[378506887,1754889746442,-501.77286595,0.00030136,120]
[378506888,1754889746494,-751.26,0.00030136,120]
[378506889,1754889746547,-400.0,0.00030136,120]
[378506890,1754889746602,-552.24,0.00030136,120]
[378506891,1754889746653,-2242.89,0.00030136,120]
[378506892,1754889746707,-677.23,0.00030136,120]
[378506893,1754889746765,-1601.48,0.00030136,120]
[378506894,1754889746820,-1710.94,0.00030136,120]
[378506895,1754889746875,-400.0,0.00030136,120]
[378506896,1754889746932,-1258.69,0.00030136,120]
[378506897,1754889746985,-400.0,0.00030136,120]
[378506898,1754889747039,-1353.62,0.00030136,120]
[378506899,1754889747092,-534.73,0.00030136,120]
[378506900,1754889747144,-681.22,0.00030136,120]
[378506901,1754889747196,-400.0,0.00030136,120]
[378506902,1754889747245,-400.0,0.00030136,120]
[378506903,1754889747296,-400.0,0.00030136,120]
[378506904,1754889747346,-400.0,0.00030136,120]
[378506905,1754889747397,-632.96,0.00030136,120]
[378506906,1754889747448,-1244.37,0.00030136,120]
[378506907,1754889747501,-1265.2,0.00030136,120]
[378506908,1754889747553,-908.22,0.00030136,120]
[378506909,1754889747604,-402.17394636,0.00030136,120]
[378506910,1754889747654,-400.0,0.00030136,120]
[378506911,1754889747707,-1000.0,0.00030136,120]
[378506912,1754889747769,-7429.9,0.00030136,120]
[378506913,1754889747825,-6594.49,0.00030136,120]
[378506914,1754889747884,-660.52,0.00030136,120]
[378506915,1754889747937,-1225.85,0.00030136,120]
[378506916,1754889747990,-400.0,0.00030136,120]
[378506917,1754889748043,-1051.53,0.00030136,120]
[378506918,1754889748094,-400.0,0.00030136,120]
[378506919,1754889748146,-400.0,0.00030136,120]
[378506920,1754889748198,-469.86,0.00030136,120]
[378506921,1754889748250,-400.0,0.00030136,120]
[378506922,1754889748300,-2140.43,0.00030136,120]
[378506923,1754889748351,-1329.57,0.00030136,120]
[378506924,1754889748401,-413.26,0.00030136,120]
[378506925,1754889748449,-400.0,0.00030136,120]
[378506926,1754889748504,-6021.37,0.00030136,120]
[378506927,1754889748556,-1555.72,0.00030136,120]
[378506928,1754889748609,-1345.04,0.00030136,120]
[378506929,1754889748659,-400.0,0.00030136,120]
[378506930,1754889748712,-1301.37,0.00030136,120]
[378506931,1754889748770,-419.86697362,0.00030136,120]
[378506932,1754889748823,-400.0,0.00030136,120]
[378506933,1754889748876,-523.26,0.00030136,120]
[378506934,1754889748929,-400.0,0.00030136,120]
[378506935,1754889748988,-1376.95,0.00030136,120]
[378506936,1754889749042,-400.0,0.00030136,120]
[378506937,1754889749093,-1799.18,0.00030136,120]
[378506938,1754889749145,-2069.33,0.00030136,120]
[378506939,1754889749197,-1760.99,0.00030136,120]
[378506940,1754889749248,-400.0,0.00030136,120]
[378506941,1754889749303,-1158.55,0.00030136,120]
[378506942,1754889749358,-1089.57,0.00030136,120]
[378506943,1754889749408,-953.95,0.00030136,120]
[378506944,1754889749459,-1803.78,0.00030136,120]
[378506945,1754889749517,-171.79722,0.00030136,120]
[378506946,1754889749574,-586.79,0.00030136,120]
[378506947,1754889749626,-908.53,0.00030136,120]
[378506948,1754889749677,-159.008014,0.00030136,120]
[378506949,1754889749727,-497.37,0.00030136,120]
[378506950,1754889749777,-478.01,0.00030136,120]
[378506951,1754889749828,-400.0,0.00030136,120]
[378506952,1754889749880,-400.0,0.00030136,120]
[378506953,1754889749930,-1191.38,0.00030136,120]
[378506954,1754889749979,-400.0,0.00030136,120]
[378506955,1754889750028,-400.0,0.00030136,120]
[378506956,1754889750076,-400.0,0.00030136,120]
[378506957,1754889750126,-400.0,0.00030136,120]
[378506958,1754889750176,-402.73454839,0.00030136,120]
[378506959,1754889750225,-500.0,0.00030136,120]
[378506960,1754889750274,-400.0,0.00030136,120]
[378506961,1754889750325,-500.0,0.00030136,120]
[378506962,1754889750375,-500.0,0.00030136,120]
[378506963,1754889750423,-500.0,0.00030136,120]
[378506964,1754889750470,-400.0,0.00030136,120]
[378506965,1754889750525,-500.0,0.00030136,120]
[378506966,1754889750574,-500.0,0.00030136,120]
[378506967,1754889750622,-500.0,0.00030136,120]
[378506968,1754889750671,-500.0,0.00030136,120]
[378506969,1754889750720,-514.07771216,0.00030136,120]
[378506970,1754889750769,-500.0,0.00030136,120]
[378506971,1754889750820,-500.0,0.00030136,120]
[378506972,1754889751090,-500.0,0.00030136,120]
[378506973,1754889751138,-500.0,0.00030136,120]
[378506974,1754889751188,-1278.76,0.00030136,120]
[378506975,1754889751238,-500.0,0.00030136,120]
[378506976,1754889751287,-500.0,0.00030136,120]
[378506977,1754889751336,-482.00072494,0.00030136,120]
[378506978,1754889751386,-400.0,0.00030136,120]
[378506979,1754889751434,-519.18,0.00030136,120]
[378506980,1754889751481,-404.45112367,0.00030136,120]
[378506981,1754889751534,-400.0,0.00030136,120]
[378506982,1754889751586,-406.99469502,0.00030136,120]
[378506983,1754889751641,-400.0,0.00030136,120]
[378506984,1754889751693,-400.0,0.00030136,120]
[378506985,1754889751748,-619.87,0.00030136,120]
[378506986,1754889751810,-1285.41,0.00030136,120]
[378506987,1754889751863,-400.0,0.00030136,120]
[378506988,1754889751913,-400.0,0.00030136,120]
[378506989,1754889751964,-403.6277332,0.00030136,120]
[378506990,1754889752015,-1067.96,0.00030136,120]
[378506991,1754889752064,-400.0,0.00030136,120]
[378506992,1754889752119,-400.0,0.00030136,120]
[378506993,1754889752171,-400.0,0.00030136,120]
[378506994,1754889752221,-1995.35,0.00030136,120]
[378506995,1754889752270,-400.0,0.00030136,120]
[378506996,1754889752319,-4519.22,0.00030136,120]
[378506997,1754889752367,-2255.19,0.00030136,120]
[378506998,1754889752420,-403.15854725,0.00030136,120]
[378506999,1754889752472,-3024.01,0.00030136,120]
[378507000,1754889752522,-400.0,0.00030136,120]
[378507001,1754889752576,-400.0,0.00030136,120]
[378507002,1754889752625,-1183.16,0.00030136,120]
[378507003,1754889752675,-1061.54,0.00030136,120]
[378507004,1754889752732,-721.75,0.00030136,120]
[378507005,1754889752784,-1198.94,0.00030136,120]
[378507006,1754889752836,-400.0,0.00030136,120]
[378507007,1754889752891,-4330.23,0.00030136,120]
[378507008,1754889752946,-1327.89,0.00030136,120]
[378507009,1754889753002,-400.0,0.00030136,120]
[378507010,1754889753060,-504.82,0.00030136,120]
[378507011,1754889753112,-400.0,0.00030136,120]
[378507012,1754889753164,-1516.04,0.00030136,120]
[378507013,1754889753215,-403.41771328,0.00030136,120]
[378507014,1754889753267,-1579.78,0.00030136,120]
[378507015,1754889753319,-216.3,0.00030136,120]
[378507016,1754889753372,-295.60993257,0.00030136,120]
[378507017,1754889753425,-400.0,0.00030136,120]
[378507018,1754889753474,-400.0,0.00030136,120]
[378507019,1754889753532,-400.0,0.00030136,120]
[378507020,1754889753585,-401.99241119,0.00030136,120]
[378507021,1754889753638,-400.0,0.00030136,120]
[378507022,1754889753690,-400.0,0.00030136,120]
[378507023,1754889753743,-164.594303,0.00030136,120]
[378507024,1754889753798,-400.0,0.00030136,120]
[378507025,1754889753852,-400.0,0.00030136,120]
[378507026,1754889753907,-967.54,0.00030136,120]
[378507027,1754889753961,-661.9,0.00030136,120]
[378507028,1754889754014,-400.0,0.00030136,120]
[378507029,1754889754081,-400.0,0.00030136,120]
[378507030,1754889754136,-400.0,0.00030136,120]
[378507031,1754889754192,-1977.12,0.00030136,120]
[378507032,1754889754245,-400.0,0.00030136,120]
[378507033,1754889754298,-400.0,0.00030136,120]
[378507034,1754889754351,-400.0,0.00030136,120]
[378507035,1754889754404,-1147.53,0.00030136,120]
[378507036,1754889754455,-405.20905401,0.00030136,120]
[378507037,1754889754506,-6480.55,0.00030136,120]
[378507038,1754889754560,-400.0,0.00030136,120]
[378507039,1754889754613,-400.0,0.00030136,120]
[378507040,1754889754669,-4497.64,0.00030136,120]
[378507041,1754889754723,-400.0,0.00030136,120]
[378507042,1754889754777,-400.0,0.00030136,120]
[378507043,1754889754832,-2038.42,0.00030136,120]
[378507044,1754889754892,-697.5,0.00030136,120]
[378507045,1754889754950,-1223.08,0.00030136,120]
[378507046,1754889755008,-400.0,0.00030136,120]
[378507047,1754889755070,-400.0,0.00030136,120]
[378507048,1754889755126,-400.0,0.00030136,120]
[378507049,1754889755186,-400.0,0.00030136,120]
[378507050,1754889755240,-400.0,0.00030136,120]
[378507051,1754889755292,-2661.42,0.00030136,120]
[378507052,1754889755343,-400.0,0.00030136,120]
[378507053,1754889755396,-400.0,0.00030136,120]
[378507054,1754889755448,-730.3,0.00030136,120]
[378507055,1754889755499,-2084.25,0.00030136,120]
[378507056,1754889755554,-2142.7,0.00030136,120]
[378507057,1754889755610,-400.0,0.00030136,120]
[378507058,1754889755669,-400.0,0.00030136,120]
[378507059,1754889755725,-943.23,0.00030136,120]
[378507060,1754889755780,-400.0,0.00030136,120]
[378507061,1754889755837,-907.18,0.00030136,120]
[378507062,1754889755889,-2332.47,0.00030136,120]
[378507063,1754889755941,-400.0,0.00030136,120]
[378507064,1754889755994,-400.0,0.00030136,120]
[378507065,1754889756047,-811.4,0.00030136,120]
[378507066,1754889756409,-401.48139989,0.00030136,120]
[378507067,1754889756464,-1849.65,0.00030136,120]
[378507068,1754889756518,-400.0,0.00030136,120]
[378507069,1754889756578,-400.0,0.00030136,120]
[378507070,1754889756632,-23912.24,0.00030136,120]
[378507071,1754889756683,-417.05,0.00030136,120]
[378507072,1754889756736,-529.02,0.00030136,120]
[378507073,1754889756789,-400.0,0.00030136,120]
[378507074,1754889756842,-1050.55,0.00030136,120]
[378507075,1754889756896,-400.0,0.00030136,120]
[378507076,1754889756948,-770.57,0.00030136,120]
[378507077,1754889757004,-1630.97,0.00030136,120]
[378507078,1754889757055,-400.0,0.00030136,120]
[378507079,1754889757103,-199.0031394,0.00030136,120]
[378507080,1754889757150,-400.0,0.00030136,120]
[378507081,1754889757200,-400.0,0.00030136,120]
[378507082,1754889757248,-400.0,0.00030136,120]